[Event "10th Norway Chess 2022"]
[White "Carlsen,Magnus"]
[Black "Giri,Anish"]
[Site "Stavanger"]
[Round "4.1"]
[Annotator "TA"]
[Result "1-0"]
[Date "2022.06.03"]
[WhiteElo "2864"]
[BlackElo "2761"]
[PlyCount "67"]
[TimeControl "60"]

{[%evp 14,67,19,16,32,30,21,19,23,6,26,26,18,20,24,13,19,18,24,19,73,59,80,77,108,105,106,107,119,118,118,118,118,118,118,118,362,362,362,361,321,198,372,387,440,410,746,709,783,778,770,755,744,716,668,650]} 1. d4 {[%emt 0:0:7]} Nf6 {[%emt 0:0:7]} 2. c4 {[%emt 0:0:5]} e6 {[%emt 0:0:5]} 3. Nf3 {[%emt 0:0:9]
} d5 {[%emt 0:0:5]} 4. Nc3 {[%emt 0:0:5]} c5 {[%emt 0:1:6]} 5. cxd5 {[%emt 0:0:33]} cxd4 {[%emt 0:0:8]} 6. Qxd4 {[%emt 0:0:58]} exd5 {[%emt 0:0:11]
} 7. Bg5 {[%emt 0:1:45]} Be7 {[%emt 0:0:52]} 8. e3 {[%emt 0:0:0]} O-O {[%emt 0:1:29] D50: Queen's Gambit Declined: Dutch-Peruvian Gambit.} 9. Be2 {[%emt 0:2:28]} Nc6 {[%emt 0:2:58]} 10. Qd3 {[%emt 0:1:26]} h6 {[%emt 0:0:12]
 The position is equal.} 11. Bh4 {[%emt 0:0:10]} Be6 {[%emt 0:0:0]} 12. O-O {[%emt 0:1:31]} Qb6 {[%emt 0:0:13]} 13. Bxf6 {[%emt 0:10:44]} (13. a3 {feels hotter.} d4 14. exd4 g5 15. Bg3 )Bxf6 {[%emt 0:4:43]} 14. Nxd5 {[%emt 0:0:18]} Bxd5 {[%emt 0:14:53]} ({Much less strong is} 14... Qxb2 15. Rfb1 (15. Rab1 Qxa2 16. Nxf6+ gxf6 $14 )Qxa1 16. Rxa1 Bxa1 17. Nc7 $16 )15. Qxd5 {[%emt 0:0:10]} Qxb2 {[%emt 0:2:28]} (15... Rfd8 {seems wilder.
} 16. Qf5 Qxb2 17. Bc4 Rac8 )16. Bc4 {[%emt 0:0:54] [#]} Qxa1 $146 {[%emt 0:0:0]} (16... Qa3 $11 {keeps the balance.} )({Predecessor:} 16... Rad8 17. Qf5 Qxa1 18. Rxa1 Bxa1 19. g4 Rd6 20. Qb1 Ne5 21. Nxe5 Bxe5 22. Qxb7 a5 {0-1 (60)
Gharibyan,M (2460)-Kantor,G (2527) Tornelo INT 2021} )17. Rxa1 $16 {[%emt 0:0:0]} Bxa1 {[%emt 0:0:2]} 18. g4 {[%emt 0:14:12]} Rae8 {[%emt 0:3:38]} 19. h4 {[%emt 0:16:23]} Re7 {[%emt 0:3:15]} 20. g5 {[%emt 0:10:6]} hxg5 {[%emt 0:0:0]} 21. Nxg5 {[%emt 0:11:31] [#] White wants to mate with Qf5.} ({Don't take} 21. hxg5 Ne5 $14 )Bf6 {[%emt 0:8:52]} 22. Qf5 {[%emt 0:6:33][%csl Gg5][%cal Rf5h7]
} Bxg5 {[%emt 0:0:16]} 23. hxg5 {[%emt 0:2:1]} Re5 {[%emt 0:0:0] [#]} 24. Qf4 {[%emt 0:1:36]} Rc5 $2 {[%emt 0:2:1] Loses the game.} (24... Re7 $16 )25. g6 $1 $18 {[%emt 0:1:2][%cal Rc4f7]} Ne5 {[%emt 0:0:23]} 26. gxf7+ {[%emt 0:1:19]} Nxf7 {[%emt 0:0:17]} 27. Be6 {[%emt 0:4:39]
Threatens to win with Qd6.} Rh5 $2 {[%emt 0:0:28]} (27... Rc6 {keeps fighting.
} )28. Qc7 {[%emt 0:0:53]} g5 {[%emt 0:8:44]} 29. Qxb7 {[%emt 0:4:20]} Rh6 {[%emt 0:1:10]
} (29... a5 $142 30. Qb5 Kg7 31. Qb2+ Kg8 )30. Bb3 {[%emt 0:0:0] White is clearly winning.} g4 {[%emt 0:3:25]} 31. Qxa7 {[%emt 0:1:14]} Kg7 {[%emt 0:2:20]} 32. e4 {[%emt 0:2:36]} Rh5 {[%emt 0:0:26]} 33. Qc7 {[%emt 0:1:9]
} Kf6 {[%emt 0:3:1]} 34. a4 {[%emt 0:0:23] Weighted Error
Value: White=0.08 (flawless) /Black=0.39} 1-0

[Event "10th Norway Chess 2022"]
[White "So,Wesley"]
[Black "Anand,Viswanathan"]
[Site "Stavanger"]
[Round "4.1"]
[Annotator "TA"]
[Result "1/2-1/2"]
[Date "2022.06.03"]
[WhiteElo "2766"]
[BlackElo "2751"]
[PlyCount "56"]
[TimeControl "60"]

{[%evp 14,56,1,0,0,0,0,0,0,0,0,0,7,0,0,0,0,0,0,-9,0,0,0,0,0,0,0,0,0,-63,-69,-53,-22,-58,-48,-50,-46,-97,-90,-91,0,-43,0,-82,0]} 1. c4 {[%emt 0:0:9]} c5 {[%emt 0:0:16]
} 2. Nc3 {[%emt 0:0:16]} g6 {[%emt 0:0:53]} 3. g3 {[%emt 0:0:0]} Bg7 {[%emt 0:0:10]} 4. Bg2 {[%emt 0:0:8]} Nc6 {[%emt 0:0:7]} 5. Nf3 {[%emt 0:0:7]
} e6 {[%emt 0:0:39]} 6. d4 {[%emt 0:2:5]} Nxd4 {[%emt 0:8:30]
} 7. Nxd4 {[%emt 0:0:11]} cxd4 {[%emt 0:0:5]} 8. Ne4 $1 {[%emt 0:0:7] The
main line 8.Ne4 scores better than 8.Nb5.} d5 {[%emt 0:15:44] 8...Ne7 is not
played anymore. A37: Symmetrical English vs ...g6: 4 Bg2 Bg7 5 Nf3.} 9. Qa4+ {[%emt 0:0:11]
} Kf8 $1 {[%emt 0:0:17]} 10. Qa3+ {[%emt 0:0:7]} Qe7 {[%emt 0:0:0] [#] ...Qxa3 is the strong threat. The position is equal.} 11. Nd6 {[%emt 0:0:6]
} Be5 {[%emt 0:1:21]} 12. c5 {[%emt 0:0:8]} Kg7 {[%emt 0:0:0]} 13. O-O {[%emt 0:1:18]} Nh6 {[%emt 0:8:33]} 14. e4 {[%emt 0:7:26]} dxe4 {[%emt 0:0:24]} 15. Nxe4 {[%emt 0:15:53]} f6 $36 {[%emt 0:5:2] 
[#] Prevents Bg5. Black has some pressure.} 16. f4 $146 {[%emt 0:15:40]} ({
Predecessor:} 16. b4 Rd8 17. b5 Nf5 18. Rb1 h5 19. Bd2 Bd7 20. Qd3 Rac8 21. Bb4 Qf7 22. a4 {1-0 (31) Mondry,M (2247)-Rashitov,D (2328) ICCF email 2018} )Bc7 {[%emt 0:0:34]} 17. Nd6 {[%emt 0:0:15]} Rd8 {[%emt 0:9:27][%cal Rc7d6]} 18. Nb5 {[%emt 0:3:48]} ({Much weaker is} 18. Bxb7 {[#]} Bxd6 $1 19. Bxa8 Bxc5 $17 )Qd7 {[%emt 0:2:55]} 19. Nxc7 {[%emt 0:8:50]} Qxc7 {[%emt 0:0:8]} 20. Bd2 {[%emt 0:0:11]} a5 {[%emt 0:0:17][%cal Ya7a5,Ya5a4]} 21. c6 {[%emt 0:0:14] Against Bd7} (21. b4 $11 )bxc6 $15 {[%emt 0:3:7]} 22. Rac1 {[%emt 0:0:14]} Ra6 {[%emt 0:7:3]} 23. Rc5 {[%emt 0:2:56][%cal Rc5a5]} a4 {[%emt 0:0:25]} 24. Rfc1 {[%emt 0:2:51][%cal Rg2c6]} Bb7 {[%emt 0:2:55]} 25. Bf1 {[%emt 0:9:47]} (25. Re1 $15 )Raa8 $17 {[%emt 0:0:19]} 26. Bg2 {[%emt 0:0:5][%cal Rg2c6]} Ra6 {[%emt 0:0:59]} (26... Qf7 $17 )27. Bf1 $1 $15 {[%emt 0:0:4]} Raa8 {[%emt 0:1:5]} 28. Bg2 {[%emt 0:0:4][%cal Rg2c6]} Ra6 {[%emt 0:0:43] Weighted Error Value: White=0.09 (flawless) /Black=0.08 
(flawless)} ({Black should play} 28... d3 $17 29. R1c4 Qd6 30. Bxc6 Bxc6 31. Rxc6 Qxa3 32. bxa3 Kg8 )1/2-1/2

[Event "10th Norway Chess 2022"]
[White "Radjabov,Teimour"]
[Black "Vachier-Lagrave,Maxime"]
[Site "Stavanger"]
[Round "4.1"]
[Annotator "TA"]
[Result "1/2-1/2"]
[Date "2022.06.03"]
[WhiteElo "2753"]
[BlackElo "2750"]
[PlyCount "60"]
[TimeControl "60"]

{[%evp 19,60,0,0,0,0,0,0,0,0,0,2,0,0,0,0,0,0,0,0,0,0,-10,0,0,0,-5,0,0,0,0,0,0,0,0,3,1,5,0,0,0,0,0,0]} 1. d4 {[%emt 0:0:4]} Nf6 {[%emt 0:0:3]} 2. c4 {[%emt 0:0:17]
} g6 {[%emt 0:0:4]} 3. Nc3 {[%emt 0:0:10]} d5 {[%emt 0:0:3]} 4. cxd5 {[%emt 0:0:11]} Nxd5 {[%emt 0:0:4]} 5. e4 {[%emt 0:0:14]} Nxc3 {[%emt 0:0:3]
} 6. bxc3 {[%emt 0:0:9]} Bg7 {[%emt 0:0:3]} 7. Nf3 {[%emt 0:0:0]} c5 {[%emt 0:0:7]} 8. Bb5+ {[%emt 0:1:12]} Nc6 {[%emt 0:0:35]} 9. O-O {[%emt 0:0:23]} O-O {[%emt 0:0:14]} 10. Bxc6 $1 {[%emt 0:0:20]
is currently scoring better than 10.Be3.} bxc6 {[%emt 0:0:4] The position is
equal.} 11. Qc2 {[%emt 0:0:9] D85: Exchange Grünfeld: Unusual White 7th
moves and lines with 7 Nf3.} cxd4 {[%emt 0:1:29]} 12. cxd4 {[%emt 0:1:10]} Bg4 {[%emt 0:0:6]} 13. Ne5 {[%emt 0:3:47]} Qxd4 {[%emt 0:2:9]} 14. Bb2 {[%emt 0:0:8][%cal Yc1b2,Yb2e5,Ye5c3,Yc3d4,Yd4b6]
} Qb6 {[%emt 0:0:0]} 15. Rab1 {[%emt 0:3:15]} Bxe5 {[%emt 0:0:18]} 16. Bxe5 {[%emt 0:0:5]} Qa5 {[%emt 0:0:7]} 17. Bc3 {[%emt 0:1:56]} Qc5 {[%emt 0:0:13]} 18. Qb2 {[%emt 0:2:14]
} a5 {[%emt 0:3:38]} 19. Bd4 {[%emt 0:11:1]} Qd6 {[%emt 0:0:0]} 20. Qc3 {[%emt 0:6:43] [#]} Rfd8 $146 {[%emt 0:7:36]} ({Predecessor:} 20... Be2 21. Rfe1 Bb5 22. a4 Bxa4 23. Bh8 f6 24. e5 Qd8 25. exf6 exf6 {
1-0 (64) Bluebaum,M (2642)-Ivic,V (2610) Terme Catez 2022} )21. Bb6 {[%emt 0:0:0][%csl Ya5,Yd8]} Qd3 {[%emt 0:4:35]} 22. Qe5 {[%emt 0:2:0]} Re8 {[%emt 0:1:18]
} 23. f3 {[%emt 0:10:30]} ({But not} 23. Bd4 f6 24. Qf4 Be6 $17 )f6 {[%emt 0:1:1]} 24. Qc5 {[%emt 0:1:54]} Be6 {[%emt 0:0:12]} 25. a3 {[%emt 0:1:42]} a4 {[%emt 0:8:33]} 26. Rfd1 {[%emt 0:0:41]} Qe2 {[%emt 0:0:0]} 27. Qxc6 {[%emt 0:9:51]} Kf7 {[%emt 0:4:18]} 28. Re1 {[%emt 0:7:28]} Qc4 {[%emt 0:0:58]} 29. Qxc4 {[%emt 0:0:34]} Bxc4 {[%emt 0:0:5]} 30. Rbc1 {[%emt 0:3:25]
} Rec8 {[%emt 0:1:8] An even fight not without its subleties. 
Weighted Error Value: White=0.01 (flawless) /Black=0.02 (flawless)} 1/2-1/2

[Event "10th Norway Chess 2022"]
[White "Wang,Hao"]
[Black "Mamedyarov,Shakhriyar"]
[Site "Stavanger"]
[Round "4.1"]
[Annotator "TA"]
[Result "0-1"]
[Date "2022.06.03"]
[WhiteElo "2744"]
[BlackElo "2770"]
[PlyCount "108"]
[TimeControl "60"]

{[%evp 18,108,21,14,21,0,0,0,6,-42,-21,-7,-14,-4,-10,-8,-9,-2,0,-33,-18,-25,-14,-19,-16,-43,-40,-34,-32,-43,-33,-34,-40,-52,-53,-96,-87,-103,-86,-95,-87,-177,-168,-173,-165,-173,-162,-172,-171,-214,-207,-204,-86,-80,-75,-74,-76,-175,-166,-166,-166,-176,-176,-243,-243,-220,-230,-311,-304,-293,-281,-261,-247,-317,-207,-247,-247,-245,-152,-247,-181,-316,-181,-252,-170,-327,-324,-298,-291,-1073,-1016,-863,-756]} 1. e4 {[%emt 0:0:3]} e5 {[%emt 0:0:12]} 2. Nf3 {[%emt 0:0:6]} Nc6 {[%emt 0:0:7]} 3. Bb5 {[%emt 0:0:5][%cal Yf1b5,Yb5a4,Ya4b3,Yb3c2]} a6 {[%emt 0:0:14]} 4. Ba4 {[%emt 0:0:6]} Nf6 {[%emt 0:0:4]
} 5. O-O {[%emt 0:0:13]} Nxe4 {[%emt 0:0:22]} 6. d4 {[%emt 0:0:0]} b5 {[%emt 0:0:4]} 7. Bb3 {[%emt 0:0:6]} d5 {[%emt 0:0:2]} 8. dxe5 {[%emt 0:0:8]} Be6 {[%emt 0:0:4]} 9. c3 {[%emt 0:0:36]} Be7 {[%emt 0:0:0] [#]} 10. Bc2 $146 {[%emt 0:8:6]} ({Predecessor:} 10. Nbd2 Nc5 11. Bc2 Bg4 12. Re1 Qd7 13. Nf1 Rd8 14. Ne3 Bh5 15. b4 Ne6 16. g4 Bg6 17. Nf5 h5 18. h3 hxg4 19. hxg4 Na7 20. Be3 Nc8 21. a4 Qc6 22. Bd4 Nb6 23. axb5 axb5 24. Ra6 Rh3 25. Re3 {1-0 (42) Gara,A (2344)-Fordan,T (2286) Budapest 2001} )Bg4 {[%emt 0:0:32]
 C83: Open Ruy Lopez: 9 c3 Be7.} 11. Bb3 {[%emt 0:13:44]} Nc5 {[%emt 0:4:11]
} 12. Bxd5 {[%emt 0:4:31]} Nxe5 {[%emt 0:0:15] The position is
equal.} 13. Bf4 {[%emt 0:5:7]} (13. Bxa8 Qxa8 14. Nbd2 O-O $16 )(13. Qd4 $11 Bxf3 14. Bxa8 (14. gxf3 c6 $11 )Bxa8 15. Qxe5 )c6 {[%emt 0:12:11]} 14. Bxe5 {[%emt 0:5:4]} Qxd5 {[%emt 0:0:19]} 15. Qxd5 {[%emt 0:0:20]} (15. Bxg7 $2 Qxd1 16. Rxd1 Bxf3 $19 )cxd5 {[%emt 0:0:4]} 16. Nbd2 {[%emt 0:0:0]} f6 {[%emt 0:9:50]} 17. Bd4 {[%emt 0:0:0]} Nd3 {[%emt 0:0:29][%cal Yc5d3,Yd3b2,Yb2a4]} 18. b4 {[%emt 0:10:44]} Nb2 {[%emt 0:12:22]} 19. h3 {[%emt 0:3:48]} Bd7 {[%emt 0:5:16][%cal Yg4d7,Yd7f5,Yf5g6]} 20. Nb3 {[%emt 0:11:0]} Na4 {[%emt 0:0:40]} 21. Ne1 {[%emt 0:4:45]} Bf5 {[%emt 0:13:26]
} 22. g4 {[%emt 0:2:26]} Bg6 {[%emt 0:0:11]} 23. Ng2 {[%emt 0:0:0]} Kf7 {[%emt 0:0:38]} 24. Rfe1 {[%emt 0:12:58]} Rac8 {[%emt 0:5:12]} 25. Nf4 {[%emt 0:5:16]} Be4 {[%emt 0:2:14]} 26. Nd2 {[%emt 0:6:11]} Bd6 {[%emt 0:8:9][%cal Ye7d6,Yd6f4,Yf4d2,Yd2e1]
} 27. Nxe4 {[%emt 0:7:45]
} Bxf4 {[%emt 0:0:6]} 28. Nc5 {[%emt 0:0:2]} Bd2 $1 {[%emt 0:0:5][%csl Yc3,Ye1]} 29. Nxa4 {[%emt 0:4:54]} (29. Red1 $17 {was necessary.} Bxc3 30. Bxc3 Nxc3 31. Rd2 )Bxe1 $19 {[%emt 0:0:30]} (29... bxa4 30. Red1 Bxc3 31. Bxc3 Rxc3 32. Rxd5 $17 )30. Nc5 {[%emt 0:0:4]} Bd2 {[%emt 0:0:4]} 31. a4 {[%emt 0:0:5]} Ra8 $1 {[%emt 0:3:14]} 32. Nd7 {[%emt 0:2:56]} Rhd8 {[%emt 0:2:36]
} 33. Nb6 {[%emt 0:0:8]} Rab8 {[%emt 0:0:3][%cal Yd2c3]
Strongly threatening ...Bxc3!} 34. axb5 {[%emt 0:0:6] [#]} Bxc3 $1 {[%emt 0:0:0]} 35. Bxc3 $17 {[%emt 0:0:4]} Rxb6 {[%emt 0:0:2]} 36. bxa6 $19 {[%emt 0:0:7] Endgame KRR-KRB} Ra8 $1 {[%emt 0:0:1]} 37. Ra5 {[%emt 0:3:27]} (37. a7 $17 )Rbxa6 {[%emt 0:0:50]} 38. Rxd5 {[%emt 0:0:0]} Ra3 {[%emt 0:0:6]} 39. Rc5 {[%emt 0:0:30]} Rd8 {[%emt 0:0:16]} 40. Kg2 {[%emt 0:0:11] [#]} (40. Rc7+ $142 Kg6 41. h4 )Rd3 $1 {[%emt 0:0:0]} 41. Bb2 {[%emt 2:0:10]} Rab3 {[%emt 2:0:5]} (41... Rxh3 42. Bxa3 Rxa3 43. Rc7+ Kg6 44. f4 $11 )42. Bc1 {[%emt 0:0:1]} Rxh3 {[%emt 0:1:53]} ({Not} 42... Rxb4 $2 43. Be3 $19 )43. Be3 {[%emt 0:0:0] And now Rc7+ would win.} Rh4 {[%emt 0:1:53]} 44. Kg3 {[%emt 0:0:0]} Rh1 {[%emt 0:0:24]} 45. Kg2 {[%emt 0:0:20]
} Re1 {[%emt 0:1:45]} 46. b5 {[%emt 0:0:5]} Kg6 {[%emt 0:0:0]} 47. Rd5 {[%emt 0:0:1]} Rb4 {[%emt 0:0:34]} 48. g5 {[%emt 0:0:1]} (48. Kf3 $17 {might work better.} )f5 {[%emt 0:3:21][%cal Yf6f5,Yf5f4]} 49. b6 {[%emt 0:0:4] [#]} (49. Rd6+ $142 Kh5 50. Rd5 (50. Bd2 $2 Rg4+ 51. Kf3 Rb1 $19 ))Reb1 {[%emt 0:0:35]} (49... Rxe3 $142 $1 {} 50. fxe3 Rxb6 )50. Rd7 {[%emt 0:0:0]} (50. Rd6+ $142 Kh5 51. Rd7 )f4 {[%emt 0:1:40]
} 51. Bd4 {[%emt 0:0:0]} (51. Bd2 {keeps fighting.} )Kf5 {[%emt 0:0:0]} ({Avoid the trap} 51... Kxg5 $2 52. Rxg7+ Kf5 53. Bc5 $19 )52. Bxg7 {[%emt 0:0:0]} Rxb6 {[%emt 0:0:0]} 53. Bh6 $2 {[%emt 0:0:0]} (53. Bd4 Rg6 54. Rf7+ Ke4 55. Bf6 )Kg4 {[%emt 0:0:36] White must now prevent
...R1b2.} 54. Rf7 {[%emt 0:0:0]} R1b3 {[%emt 0:1:45] Weighted Error Value:
White=0.43/Black=0.14 (very precise)} 0-1

[Event "10th Norway Chess 2022"]
[White "Topalov,Veselin"]
[Black "Tari,Aryan"]
[Site "Stavanger"]
[Round "4.1"]
[Annotator "TA"]
[Result "1/2-1/2"]
[Date "2022.06.03"]
[WhiteElo "2730"]
[BlackElo "2654"]
[PlyCount "101"]
[TimeControl "60"]

{[%evp 10,101,12,11,8,10,7,0,25,12,20,27,27,18,21,19,33,18,22,37,63,14,13,13,14,4,67,62,75,51,61,57,62,60,64,63,71,56,91,63,72,77,50,18,16,8,26,26,16,6,22,8,22,14,25,30,70,0,0,10,11,0,6,0,15,16,23,0,0,0,0,0,0,0,0,0,0,0,0,0,0,0,0,0,0,0,0,0,0,0,0,0,0,0]} 1. e4 {[%emt 0:0:4]} e5 {[%emt 0:0:17]} 2. Nf3 {[%emt 0:0:0]} Nc6 {[%emt 0:0:6]} 3. Bc4 {[%emt 0:0:4]} Nf6 {[%emt 0:0:13]} 4. d3 {[%emt 0:0:6]} Bc5 {[%emt 0:0:10]} 5. Nc3 {[%emt 0:0:6]} h6 {[%emt 0:0:0]} 6. h3 {[%emt 0:4:28]} a6 {[%emt 0:2:24] C50: Hungarian Defence and
Giuoco Pianissimo.} 7. a4 {[%emt 0:1:44] seems to push 7.a3 aside.} d6 {[%emt 0:1:58]
} 8. Be3 {[%emt 0:0:16]} Bb4 {[%emt 0:17:54]} 9. O-O {[%emt 0:0:0][%cal Yh1f1,Yf1e1,Ye1e4]} Bxc3 {[%emt 0:0:20]} 10. bxc3 {[%emt 0:0:6]
 [#]} O-O $146 {[%emt 0:1:1]} ({Predecessor:} 10... Na5 11. Ba2 Bd7 12. Nh4 g5 13. Nf5 Bxf5 14. exf5 Qd7 15. Qf3 d5 16. Rfb1 O-O-O {1-0 (46)
Balasubramanian,A (1889)-Dehmelt,K (2285) ICC INT 2010} )11. a5 {[%emt 0:10:17]
} d5 {[%emt 0:12:30]} 12. exd5 {[%emt 0:1:51]} Nxd5 {[%emt 0:0:8]} 13. Bd2 {[%emt 0:4:54]
} Bf5 {[%emt 0:12:9]} 14. Re1 {[%emt 0:2:11]} Re8 {[%emt 0:0:0] [#]} 15. Qb1 {[%emt 0:7:40]} (15. Nd4 $1 $14 {was preferrable.} Nde7 (15... Nxd4 16. cxd4 )16. Nxf5 Nxf5 17. Qg4 (17. Qh5 Qd7 $14 ))Qd6 $1 $11 {[%emt 0:10:5]} 16. Qb3 {[%emt 0:16:34]} ({Not} 16. Qxb7 $2 Reb8 17. Bxa6 Bc8 18. Qxa8 Rxa8 $19 )Rad8 {[%emt 0:3:26]} 17. d4 {[%emt 0:17:23]} ({
Avoid the trap} 17. Qxb7 $2 Rb8 18. Qxa6 Bc8 $19 )Bc8 {[%emt 0:6:15]} (17... e4 $11 )18. Re4 {[%emt 0:18:44]} Kh8 {[%emt 0:11:46]} 19. dxe5 {[%emt 0:0:0]} Nxe5 {[%emt 0:1:4]} 20. Nxe5 {[%emt 0:1:0]} Rxe5 {[%emt 0:0:9]} 21. Rxe5 {[%emt 0:3:29]} Qxe5 {[%emt 0:0:7]} 22. Re1 {[%emt 0:0:9]} Qd6 {[%emt 0:6:5]
} 23. Bd3 {[%emt 0:0:25]} c6 {[%emt 0:2:48]} 24. c4 {[%emt 0:0:0]} Nf4 {[%emt 0:2:26]} 25. Bxf4 {[%emt 0:2:17]} Qxf4 {[%emt 0:0:7]} 26. Qb6 {[%emt 0:0:5][%cal Rb6d8] [#]} Qd6 {[%emt 0:3:36]} 27. Re3 {[%emt 0:0:0]} Qd7 {[%emt 0:2:31]} 28. Qc5 {[%emt 0:1:53]} Re8 {[%emt 0:2:23]
Inhibits Re7.} 29. f4 {[%emt 0:4:45]} Qd8 {[%emt 0:3:22]} 30. Kf2 {[%emt 0:0:0]} Kg8 {[%emt 0:1:0]} 31. Rxe8+ {[%emt 0:0:7]} Qxe8 {[%emt 0:0:5]
 Endgame KQB-KQB} 32. Qd6 {[%emt 0:0:9]} g6 {[%emt 0:1:30]
Inhibits f5.} 33. Qf6 {[%emt 0:0:25] White is more active.} (33. g4 $14 )Qf8 {[%emt 0:1:19]} 34. Qe5 {[%emt 0:0:28]} Qd8 {[%emt 0:1:21]} 35. Ke3 {[%emt 0:1:2]
} f6 {[%emt 0:1:13]} 36. Qd4 {[%emt 0:0:5]} Qe7+ {[%emt 0:0:0]} 37. Qe4 {[%emt 0:0:14]} Qc5+ {[%emt 0:0:59]} 38. Kf3 {[%emt 0:0:5]} (38. Ke2 $5 {[%cal Re4g6]} Bf5 39. Qe8+ Qf8 40. Qxf8+ Kxf8 41. Ke3 $11 )Bf5 {[%emt 0:0:42] The position is equal.} 39. Qe8+ {[%emt 0:0:8]} Kg7 {[%emt 0:0:1]
} 40. g4 {[%emt 0:0:30]} Bxd3 {[%emt 0:0:9]} 41. Qd7+ {[%emt 1:59:54]
} Kf8 {[%emt 2:1:31]} 42. Qc8+ {[%emt 0:0:0]} Ke7 {[%emt 0:0:0]} 43. Qxb7+ {[%emt 0:0:0]} Kd6 {[%emt 0:0:0]} 44. Qb8+ {[%emt 0:0:0]} Kd7 {[%emt 0:0:0]} 45. cxd3 {[%emt 0:0:0] Qg8 is the strong threat. KQ-KQ} Qg1 {[%emt 0:0:0]} ({Don't take} 45... Qxa5 46. Qa7+ Qc7 47. Qxa6 $16 )46. Qb2 {[%emt 0:0:0]} Qf1+ {[%emt 0:0:0]} 47. Ke4 {[%emt 0:0:0]} Qe1+ {[%emt 0:0:0]
} 48. Kd4 {[%emt 0:0:0] And now Qb7+ would win.} Qxa5 {[%emt 0:0:0]} 49. Qb7+ {[%emt 0:0:10]} Kd6 {[%emt 0:0:0] Threatens to win with ...
c5+.} 50. Qb8+ {[%emt 0:0:0]} Kd7 {[%emt 0:0:0]} 51. Qb7+ {[%emt 0:0:0]
Weighted Error Value: White=0.09 (flawless) /Black=0.08 (flawless)} 1/2-1/2